bitfinex/quotes_BTCUSD_20250313
["timestamp","ask_amount","ask_price","bid_price","bid_amount"]
[1741868642095,0.0793,83389.0,83388.0,0.261834]
[1741868642303,0.0793,83389.0,83388.0,0.01]
[1741868642507,0.0793,83389.0,83388.0,0.006]
[1741868642705,0.33113,83389.0,83388.0,0.006]
[1741868642975,0.0793,83389.0,83388.0,0.011]
[1741868643393,0.139291,83389.0,83388.0,0.005]
[1741868643604,0.139291,83389.0,83388.0,0.004]
[1741868643998,0.011992,83382.0,83376.0,0.251868]
[1741868644202,0.239882,83375.0,83369.0,0.394614]
[1741868644335,0.011994,83373.0,83369.0,0.15484402]
[1741868644538,0.0768,83372.0,83369.0,0.20484402]
[1741868644812,0.0768,83372.0,83370.0,0.251888]
[1741868645018,0.0768,83372.0,83369.0,0.15484402]
[1741868645267,0.251888,83370.0,83369.0,0.15484402]
[1741868645466,0.0768,83372.0,83369.0,0.15484402]
[1741868645699,0.0768,83372.0,83369.0,0.00012402]
[1741868645700,0.011994,83370.0,83369.0,0.00012402]
[1741868646103,0.088794,83372.0,83369.0,0.00012402]
[1741868646300,0.251887,83371.0,83369.0,0.00112402]
[1741868646503,0.011994,83370.0,83369.0,0.00112402]
[1741868646739,0.011994,83370.0,83369.0,0.00012402]
[1741868647138,0.061094,83370.0,83369.0,0.00212402]
[1741868647341,0.07563485,83370.0,83369.0,0.00212402]
[1741868647513,0.07563485,83370.0,83369.0,0.00312402]
[1741868647731,0.0810584,83370.0,83369.0,0.00212402]
[1741868648039,0.0810584,83370.0,83369.0,0.00312402]
[1741868648452,0.06651755,83370.0,83369.0,0.00012402]
[1741868649189,0.24708955,83372.0,83369.0,0.00012402]
[1741868649360,0.011994,83370.0,83369.0,0.00012402]
[1741868655570,0.659283,83374.0,83369.0,0.00012402]
[1741868655799,0.011994,83372.0,83369.0,0.00012402]
[1741868656000,0.4194,83374.0,83369.0,0.00012402]
[1741868656201,0.011994,83372.0,83369.0,0.00012402]
[1741868656453,0.251884,83372.0,83369.0,0.00012402]
[1741868656599,0.251887,83371.0,83369.0,0.00012402]
[1741868656969,0.011994,83370.0,83369.0,0.00012402]
[1741868659324,0.32653485,83370.0,83369.0,0.00012402]
[1741868659457,0.45513485,83370.0,83369.0,0.00012402]
[1741868659663,0.87453485,83370.0,83369.0,0.00012402]
[1741868659894,0.89888143,83370.0,83369.0,0.00012402]
[1741868661806,0.89988143,83370.0,83369.0,0.00012402]
[1741868662007,0.89988143,83370.0,83369.0,0.00046202]
[1741868662207,0.89888143,83370.0,83369.0,0.00046202]
[1741868662649,0.89988143,83370.0,83369.0,0.00046202]
[1741868663062,0.89888143,83370.0,83369.0,0.00046202]
[1741868663392,0.90088143,83370.0,83369.0,2e-08]
[1741868664307,0.90588143,83370.0,83369.0,2e-08]
[1741868664510,1.37031589,83370.0,83369.0,2e-08]
[1741868664922,1.37531589,83370.0,83369.0,2e-08]
[1741868665146,1.37331589,83370.0,83369.0,2e-08]
[1741868665344,2.48631589,83370.0,83369.0,2e-08]
[1741868665547,2.49131589,83370.0,83369.0,2e-08]
[1741868665978,2.48631589,83370.0,83369.0,2e-08]
[1741868666204,2.49131589,83370.0,83369.0,2e-08]
[1741868671006,1.86406058,83370.0,83369.0,2e-08]
[1741868671203,0.98577781,83370.0,83369.0,2e-08]
[1741868671403,1.00031866,83370.0,83369.0,2e-08]
[1741868671636,0.95101866,83370.0,83369.0,2e-08]
[1741868671789,1.25101866,83370.0,83369.0,2e-08]
[1741868672189,1.09429866,83370.0,83369.0,2e-08]
[1741868672753,0.76574058,83370.0,83369.0,2e-08]
[1741868672959,0.741394,83370.0,83369.0,2e-08]
[1741868673832,0.4294,83370.0,83369.0,2e-08]
[1741868674670,0.4194,83370.0,83369.0,0.25222982]
[1741868674875,0.4224,83370.0,83369.0,0.25222982]
[1741868675100,0.4254,83370.0,83369.0,0.25222982]
[1741868675715,0.4254,83370.0,83369.0,0.00033882]
[1741868676315,0.4254,83370.0,83369.0,0.01233282]
[1741868677004,0.4224,83370.0,83369.0,0.01233282]
[1741868677204,0.4224,83370.0,83369.0,0.00133882]
[1741868678069,0.4224,83370.0,83369.0,0.00033882]
[1741868678243,0.4194,83370.0,83369.0,0.01233282]
[1741868678556,0.4194,83370.0,83369.0,0.01333282]
[1741868679107,0.4194,83370.0,83369.0,0.01233282]
[1741868679481,0.4194,83370.0,83369.0,0.01333282]
[1741868679810,0.4194,83370.0,83369.0,0.01233282]
[1741868680012,0.000169,83374.0,83372.0,0.239888]
[1741868680234,0.000169,83374.0,83373.0,0.011994]
[1741868682240,0.000169,83374.0,83373.0,0.191794]
[1741868683483,0.000169,83374.0,83373.0,0.137794]
[1741868683802,0.000169,83374.0,83373.0,0.187794]
[1741868684062,0.000169,83374.0,83373.0,0.137794]
[1741868684421,0.000169,83374.0,83373.0,0.1268]
[1741868684714,0.000169,83374.0,83373.0,0.188794]
[1741868685280,0.000169,83374.0,83373.0,0.192794]
[1741868685488,0.000169,83374.0,83373.0,0.191794]
[1741868686115,0.239837,83390.0,83382.0,0.011992]
[1741868686116,0.0123306,83387.0,83382.0,0.011992]
[1741868686314,0.239845,83388.0,83382.0,0.011992]
[1741868686513,0.01199,83400.0,83384.0,0.011992]
[1741868686713,0.01225034,83393.0,83391.0,0.239832]
[1741868687113,0.01225034,83393.0,83391.0,0.251823]
[1741868687589,0.01225034,83393.0,83391.0,0.249823]
[1741868688216,0.01525034,83393.0,83392.0,0.011991]
[1741868688438,0.01525034,83393.0,83391.0,0.249823]
[1741868688674,0.01525034,83393.0,83391.0,0.749823]
[1741868689113,0.01525034,83393.0,83391.0,0.5]
[1741868689319,0.25507934,83393.0,83391.0,0.5]
[1741868689525,0.25807934,83393.0,83391.0,0.5]
[1741868689951,0.0031691,83393.0,83392.0,0.251822]
[1741868690332,0.251822,83392.0,83391.0,0.5]
[1741868691917,0.002,83392.0,83391.0,0.5]
[1741868692499,0.013991,83392.0,83391.0,0.5]
[1741868692845,0.015991,83392.0,83391.0,0.5]
[1741868699059,0.75093185,83392.0,83391.0,0.5]
[1741868699418,0.75110125,83392.0,83391.0,0.5]
[1741868699819,0.74910125,83392.0,83391.0,0.5]
[1741868700203,0.74910125,83392.0,83382.0,0.0003388]
[1741868700204,0.552849,83383.0,83382.0,0.0003388]
[1741868700407,0.98678985,83383.0,83382.0,0.0003388]
[1741868701831,0.98978985,83383.0,83382.0,0.0003388]
[1741868702192,0.98678985,83383.0,83382.0,0.0003388]
[1741868702854,0.98978985,83383.0,83382.0,0.0003388]
[1741868703784,0.99378985,83383.0,83382.0,0.0003388]
[1741868704227,0.98978985,83383.0,83382.0,0.0003388]
[1741868704744,0.99278985,83383.0,83382.0,0.0003388]
[1741868704901,1.11408985,83383.0,83382.0,8e-07]
[1741868705838,0.252888,83370.0,83369.0,0.00033882]
[1741868706041,0.26742885,83370.0,83369.0,0.00033882]
[1741868707125,0.27242885,83370.0,83369.0,0.00033882]
[1741868707901,0.27742885,83370.0,83369.0,0.00033882]
[1741868708462,0.64892885,83370.0,83369.0,0.00033882]
[1741868708625,1.06832885,83370.0,83369.0,0.00033882]
[1741868708825,1.07332885,83370.0,83369.0,0.00033882]
[1741868710459,2.18632885,83370.0,83369.0,0.00033882]
[1741868710861,0.56746285,83359.0,83358.0,0.0003382]
[1741868713698,0.57246285,83359.0,83358.0,0.0003382]
[1741868713841,0.57746285,83359.0,83358.0,0.0003382]
[1741868715354,0.99686285,83359.0,83358.0,0.0003382]
[1741868716998,0.99686285,83359.0,83358.0,2e-07]
[1741868716999,1.09746543,83359.0,83358.0,2e-07]
[1741868718303,1.08746543,83359.0,83358.0,2e-07]
[1741868718479,1.09246543,83359.0,83358.0,2e-07]
[1741868719218,1.08746543,83359.0,83358.0,2e-07]
[1741868719649,1.09246543,83359.0,83358.0,2e-07]
[1741868720350,1.09746543,83359.0,83358.0,2e-07]
[1741868721180,2.21046543,83359.0,83358.0,2e-07]
[1741868722917,2.20546543,83359.0,83358.0,2e-07]
[1741868723125,2.20546543,83359.0,83330.0,0.0003382]
[1741868723126,0.240006,83331.0,83330.0,0.0003382]
[1741868723330,0.25454685,83331.0,83330.0,0.0003382]
[1741868723899,0.28535227,83331.0,83330.0,0.0003382]
[1741868724324,0.28545621,83331.0,83330.0,0.0003382]
[1741868724690,0.28645621,83331.0,83330.0,0.0003382]
[1741868724894,0.28745621,83331.0,83330.0,0.0003382]
[1741868726158,0.29952462,83331.0,83330.0,0.0003382]
[1741868733173,0.2807192,83331.0,83330.0,0.0003382]
[1741868734416,0.5807192,83331.0,83330.0,0.0003382]
[1741868734622,0.5797192,83331.0,83330.0,0.0003382]
[1741868734825,0.5817192,83331.0,83330.0,0.0003382]
[1741868735020,0.5807192,83331.0,83330.0,0.0003382]
[1741868735653,2.1161192,83331.0,83330.0,0.0003382]
[1741868735829,2.1978192,83331.0,83330.0,2e-07]
[1741868736402,2.22062765,83331.0,83330.0,2e-07]
[1741868736993,2.21662765,83331.0,83330.0,2e-07]
[1741868738080,2.21162765,83331.0,83330.0,2e-07]
[1741868738600,2.22162765,83331.0,83330.0,2e-07]
[1741868738800,2.13492765,83331.0,83330.0,2e-07]
[1741868739015,2.12992765,83331.0,83330.0,2e-07]
[1741868739217,2.13992765,83331.0,83330.0,2e-07]
[1741868741735,1.8733808,83331.0,83330.0,2e-07]
[1741868741943,1.8853808,83331.0,83330.0,2e-07]
[1741868742549,1.8803808,83331.0,83330.0,2e-07]
[1741868742904,1.89992165,83331.0,83330.0,2e-07]
[1741868743031,1.89492165,83331.0,83330.0,2e-07]
[1741868743230,1.89692165,83331.0,83330.0,2e-07]
[1741868744338,1.89192165,83331.0,83330.0,2e-07]
[1741868744738,1.89392165,83331.0,83330.0,2e-07]
[1741868747417,0.78092165,83331.0,83330.0,2e-07]
[1741868750362,0.4663808,83331.0,83330.0,0.0751002]
[1741868750562,0.43557235,83331.0,83330.0,0.0751002]
[1741868750975,0.43574185,83331.0,83330.0,0.0751002]
[1741868751186,0.43574185,83331.0,83330.0,0.0871002]
[1741868751393,0.43574185,83331.0,83330.0,0.3271092]
[1741868751577,0.43374185,83331.0,83330.0,0.3271092]
[1741868752316,0.7002887,83331.0,83330.0,2e-07]
[1741868752928,0.6982887,83331.0,83330.0,2e-07]
[1741868753560,0.71709488,83331.0,83330.0,2e-07]
[1741868755660,0.46508888,83331.0,83330.0,2e-07]
[1741868755869,0.47708888,83331.0,83330.0,2e-07]
[1741868756095,0.71709488,83331.0,83330.0,2e-07]
[1741868760248,0.45054803,83331.0,83330.0,2e-07]
[1741868760725,0.46254803,83331.0,83330.0,2e-07]
[1741868761513,0.47708888,83331.0,83330.0,2e-07]
[1741868763088,0.48008888,83331.0,83330.0,2e-07]
[1741868763292,0.48308888,83331.0,83330.0,2e-07]
[1741868765563,0.46854803,83331.0,83330.0,2e-07]
[1741868767919,0.45654803,83331.0,83330.0,0.0120002]
[1741868768145,0.45354803,83331.0,83330.0,0.1293002]
[1741868769634,0.45054803,83331.0,83330.0,0.1293002]
[1741868769836,0.45154803,83331.0,83330.0,0.1293002]
[1741868769973,0.45254803,83331.0,83330.0,0.1293002]
[1741868770182,0.43374185,83331.0,83330.0,0.1913002]
[1741868770993,0.43274185,83331.0,83330.0,0.1913002]
[1741868771424,0.41967344,83331.0,83330.0,0.1913002]
[1741868771659,0.41967344,83331.0,83330.0,0.1923002]
[1741868772289,0.43157119,83331.0,83330.0,0.1923002]
[1741868772554,0.41967344,83331.0,83330.0,0.1923002]
[1741868778055,0.41967344,83331.0,83330.0,0.1923002]
[1741868779101,0.43847691,83331.0,83330.0,0.1923002]
[1741868780663,9.1e-07,83331.0,83330.0,0.1923002]
[1741868780979,6.9e-07,83340.0,83339.0,0.251982]
[1741868781185,0.0001694,83358.0,83357.0,0.239931]
[1741868781952,0.03351164,83358.0,83357.0,0.239931]
[1741868783750,0.02428194,83365.0,83354.0,0.239938]
[1741868783751,0.23471723,83390.0,83360.0,0.239923]
[1741868783952,0.23471723,83390.0,83354.0,0.05]
[1741868783953,0.0001694,83392.0,83380.0,0.376758]
[1741868784155,0.0001694,83392.0,83390.0,0.239836]
[1741868784356,0.0001694,83392.0,83390.0,0.251827]
[1741868784795,0.01209022,83391.0,83390.0,0.251827]
[1741868785000,0.01209022,83391.0,83390.0,0.296827]
[1741868785200,0.00029345,83391.0,83390.0,0.296827]
[1741868785617,0.00229345,83391.0,83390.0,0.296827]
[1741868786243,0.01419985,83391.0,83390.0,0.296827]
[1741868787255,0.01219985,83391.0,83390.0,0.296827]
[1741868787411,0.00029345,83391.0,83390.0,0.296827]
[1741868787618,0.00129345,83391.0,83390.0,0.373627]
[1741868788021,0.00029345,83391.0,83390.0,0.373627]
[1741868789049,0.00029345,83391.0,83390.0,0.374627]
[1741868789267,0.0001691,83393.0,83392.0,0.066991]
[1741868789268,9.5e-07,83393.0,83392.0,0.066991]
[1741868789399,9.5e-07,83393.0,83392.0,0.35692097]
[1741868789604,9.5e-07,83393.0,83392.0,0.355722]
[1741868790267,9.5e-07,83393.0,83392.0,0.305722]
[1741868790443,9.5e-07,83393.0,83392.0,0.355722]
[1741868791807,0.01379165,83410.0,83409.0,0.251771]
[1741868792234,0.02553782,83410.0,83409.0,0.251771]
[1741868792582,0.01379165,83410.0,83409.0,0.251771]
[1741868792981,0.01454085,83426.0,83413.0,0.251758]
[1741868793198,0.31454085,83426.0,83413.0,0.251758]
[1741868793401,0.011986,83426.0,83418.0,0.239753]
[1741868793775,0.02425419,83426.0,83420.0,0.239748]
[1741868793954,0.02425419,83426.0,83418.0,0.25174]
[1741868794182,0.26398919,83426.0,83418.0,0.239753]
[1741868794354,0.26398919,83426.0,83413.0,0.23977]
[1741868794355,0.239744,83422.0,83413.0,0.23977]
[1741868794498,0.251731,83422.0,83413.0,0.23977]
[1741868794714,0.25174,83420.0,83412.0,0.011988]
[1741868794923,0.239747,83421.0,83414.0,0.251753]
[1741868795128,0.251729,83423.0,83416.0,0.011988]
[1741868795322,0.01626819,83426.0,83420.0,0.011987]
[1741868795529,0.25200219,83426.0,83420.0,0.251735]
[1741868795730,0.239748,83421.0,83415.0,0.0492]
[1741868796031,0.013987,83420.0,83412.0,0.011988]
[1741868796230,0.25374,83420.0,83413.0,0.23977]
[1741868796450,0.251745,83418.0,83411.0,0.251761]
[1741868796666,0.239771,83413.0,83409.0,0.05]
[1741868796867,0.239776,83411.0,83407.0,0.05]
[1741868797014,0.239776,83411.0,83409.0,0.05]
[1741868797233,0.239782,83409.0,83407.0,0.05]
[1741868797433,0.0187877,83411.0,83409.0,0.239782]
[1741868797596,0.0187877,83411.0,83409.0,0.301771]
[1741868797796,0.0187877,83411.0,83409.0,0.05]
[1741868798230,0.0187877,83411.0,83407.0,0.05]
[1741868798425,0.0187877,83411.0,83410.0,0.011988]
[1741868799444,0.0187877,83411.0,83410.0,0.140188]
[1741868799651,0.0187877,83411.0,83410.0,0.186888]
[1741868800281,0.0187877,83411.0,83410.0,0.491888]
[1741868800497,0.00041343,83426.0,83425.0,0.251722]
[1741868800699,0.01919866,83426.0,83425.0,0.251722]
[1741868801350,0.01919866,83426.0,83425.0,0.384322]
[1741868801969,0.01919866,83426.0,83425.0,0.386322]
[1741868802181,0.01919866,83426.0,83425.0,0.388322]
[1741868803244,0.01919866,83426.0,83425.0,0.736722]
[1741868803245,0.00041343,83426.0,83425.0,0.736722]
[1741868804090,0.00041343,83426.0,83425.0,0.734722]
[1741868804270,0.00041343,83426.0,83425.0,0.736722]
[1741868804594,0.00041343,83426.0,83425.0,0.734722]
[1741868804795,0.00141343,83426.0,83425.0,0.737722]
[1741868805169,0.00041343,83426.0,83425.0,0.737722]
[1741868805375,0.00041343,83426.0,83425.0,0.742722]
[1741868806852,0.00041343,83426.0,83425.0,0.692722]
[1741868807014,0.00041343,83426.0,83425.0,0.742722]
[1741868807450,0.00041343,83426.0,83425.0,0.692722]
[1741868807647,0.00041343,83426.0,83425.0,0.742722]
[1741868807876,0.00041343,83426.0,83425.0,0.737722]
[1741868808323,0.00041343,83426.0,83425.0,0.743722]
[1741868808497,0.0125309,83434.0,83428.0,0.684113]
[1741868808706,0.0009239,83429.0,83428.0,0.730313]
[1741868808879,9e-07,83429.0,83428.0,0.730313]
[1741868809085,8e-07,83434.0,83433.0,0.726898]
[1741868809285,8e-07,83434.0,83433.0,0.876778]
[1741868809698,8e-07,83434.0,83433.0,0.875778]
[1741868809931,8e-07,83434.0,83433.0,0.89062536]
[1741868810281,8e-07,83434.0,83433.0,0.89562536]
[1741868810482,8e-07,83434.0,83433.0,2.39562536]
[1741868811117,5e-07,83442.0,83441.0,0.656674]
[1741868811337,5e-07,83442.0,83441.0,0.732274]
[1741868811874,5e-07,83442.0,83441.0,2.232274]
[1741868812099,5e-07,83442.0,83441.0,2.182274]
[1741868812297,5e-07,83442.0,83441.0,2.238274]
[1741868812501,6e-07,83443.0,83442.0,0.411984]
[1741868812700,6e-07,83443.0,83442.0,0.488584]
[1741868813266,6e-07,83443.0,83442.0,2.042684]
[1741868813685,6e-07,83443.0,83442.0,1.992684]
[1741868814290,4e-07,83458.0,83457.0,0.601626]
[1741868814496,0.00012426,83458.0,83457.0,0.880986]
[1741868815111,0.00012426,83458.0,83457.0,0.881026]
[1741868815752,0.00012426,83458.0,83457.0,0.893026]
[1741868816121,0.00012426,83458.0,83457.0,0.731026]
[1741868816327,0.00012426,83458.0,83457.0,0.886106]
[1741868817727,0.00012426,83458.0,83457.0,0.892106]
[1741868818342,0.00012426,83458.0,83457.0,0.692026]
[1741868818549,0.00012426,83458.0,83457.0,0.892026]
[1741868818815,0.00012426,83458.0,83457.0,0.442026]
[1741868819021,0.00012426,83458.0,83457.0,0.222942]
[1741868819232,0.00012426,83458.0,83457.0,0.462586]
[1741868820501,0.00012426,83458.0,83457.0,1.962586]
[1741868821546,0.00012426,83458.0,83457.0,0.011]
[1741868821756,0.00012426,83458.0,83457.0,0.061]
[1741868821965,0.25853974,83458.0,83457.0,0.061]
[1741868822171,0.27052174,83458.0,83457.0,0.011]
[1741868822384,0.27052174,83458.0,83457.0,0.061]
[1741868822626,0.27052174,83458.0,83457.0,0.055]
[1741868822824,0.27052174,83458.0,83452.0,1.5]
[1741868822942,0.251631,83456.0,83452.0,1.5]
[1741868823166,0.239654,83454.0,83453.0,0.05]
[1741868823404,0.251636,83454.0,83449.0,0.14992]
[1741868823650,0.01889874,83458.0,83457.0,0.05]
[1741868823864,0.01889874,83458.0,83457.0,0.289644]
[1741868824320,0.01889874,83458.0,83457.0,0.05]
[1741868824551,0.01889874,83458.0,83457.0,0.053]
[1741868824802,0.01889874,83458.0,83457.0,0.064982]
[1741868825294,0.01889874,83458.0,83457.0,0.066982]
[1741868825753,0.00012426,83458.0,83457.0,0.066982]
[1741868825980,0.00012426,83458.0,83457.0,0.0673208]
[1741868826222,0.00012426,83458.0,83457.0,0.0643208]
[1741868826976,0.00012426,83458.0,83457.0,0.0693208]
[1741868827197,0.00012426,83458.0,83457.0,0.37051883]
[1741868827436,0.00012426,83458.0,83457.0,0.3693208]
[1741868827652,0.00012426,83458.0,83457.0,0.3723208]
[1741868828095,0.00012426,83458.0,83457.0,0.3673208]
[1741868828574,0.00012426,83458.0,83457.0,0.3763208]
[1741868828822,0.00012426,83458.0,83457.0,0.3733208]
[1741868829056,0.00012426,83458.0,83457.0,0.3793208]
[1741868830431,0.0001695,83475.0,83474.0,0.389574]
[1741868830432,6.8e-07,83475.0,83474.0,0.389574]
[1741868830638,6.8e-07,83475.0,83474.0,0.541094]
[1741868831609,6.8e-07,83475.0,83474.0,0.544094]
[1741868831841,6.8e-07,83475.0,83474.0,1.963094]
[1741868832070,6.8e-07,83475.0,83474.0,1.953094]
[1741868832284,6.8e-07,83475.0,83474.0,1.817574]
[1741868832528,6.8e-07,83475.0,83474.0,1.969454]
[1741868832768,6.8e-07,83475.0,83474.0,1.958454]
[1741868833003,6.8e-07,83475.0,83474.0,1.967454]
[1741868833252,6.8e-07,83475.0,83474.0,0.462454]
[1741868833491,6.8e-07,83475.0,83474.0,0.2112]
[1741868833492,0.01197968,83475.0,83474.0,0.2112]
[1741868834178,0.01197968,83475.0,83474.0,0.059]
[1741868834380,0.02652053,83475.0,83474.0,0.059]
[1741868834599,0.10272053,83475.0,83474.0,0.009]
[1741868835030,0.15112053,83475.0,83474.0,4.1e-07]
[1741868835940,0.011981,83459.0,83458.0,0.05]
[1741868836182,0.011982,83458.0,83457.0,0.0003388]
[1741868836404,0.011982,83458.0,83457.0,0.0503388]
[1741868836615,0.02652285,83458.0,83457.0,0.0003388]
[1741868836825,0.04530005,83458.0,83457.0,0.0003388]
[1741868837449,0.04530005,83458.0,83457.0,0.0503388]
[1741868837450,0.0187772,83458.0,83457.0,0.0503388]
[1741868837675,0.2704002,83458.0,83457.0,0.0503388]
[1741868837900,0.0187772,83458.0,83457.0,0.0503388]
[1741868838130,0.0187772,83458.0,83457.0,0.0623208]
[1741868838532,0.0187772,83458.0,83457.0,0.0633208]
[1741868839413,0.0187772,83458.0,83457.0,0.0643208]
[1741868839794,0.0189466,83458.0,83457.0,0.0643208]
[1741868841164,0.0189466,83458.0,83457.0,0.0523388]
[1741868842022,0.0309286,83458.0,83457.0,0.0023388]
[1741868842216,0.04546945,83458.0,83457.0,0.0023388]
[1741868843000,0.02669225,83458.0,83457.0,0.0023388]
[1741868843198,0.02669225,83458.0,83457.0,0.0013388]
[1741868843447,0.0141514,83458.0,83457.0,0.0013388]
[1741868843643,0.0141514,83458.0,83457.0,0.0503388]
[1741868843834,0.0121514,83458.0,83457.0,0.0503388]
[1741868844010,0.10889225,83458.0,83457.0,0.0003388]
[1741868844506,0.10889225,83458.0,83457.0,0.0623208]
[1741868844507,0.0011694,83458.0,83457.0,0.0623208]
[1741868845169,0.0001694,83458.0,83457.0,0.0623208]
[1741868845395,0.0051694,83458.0,83457.0,0.0623208]
[1741868845602,0.0031694,83458.0,83457.0,0.0623208]
[1741868845957,0.0031694,83458.0,83457.0,0.0646008]
[1741868846157,0.0031694,83458.0,83457.0,0.0526188]
[1741868846356,0.0031694,83458.0,83457.0,0.0646008]
[1741868847358,0.0001694,83458.0,83457.0,0.0646008]
[1741868848182,0.0121514,83458.0,83457.0,0.0026188]
[1741868848384,0.0121514,83458.0,83457.0,0.0036188]
[1741868848385,0.02669225,83458.0,83457.0,0.0036188]
[1741868848596,0.02669225,83458.0,83457.0,0.0536188]
[1741868848802,0.02669225,83458.0,83457.0,0.0036188]
[1741868849047,0.02669225,83458.0,83457.0,0.0536188]
[1741868849464,0.01100545,83459.0,83457.0,0.3062438]
[1741868849688,0.01100545,83459.0,83457.0,0.0666008]
[1741868849914,0.01100545,83459.0,83458.0,0.061982]
[1741868850118,0.01100545,83459.0,83458.0,0.05]
[1741868850634,0.01100545,83459.0,83458.0,0.049]
[1741868851038,0.25064345,83459.0,83458.0,0.049]
[1741868851237,0.01100545,83459.0,83458.0,0.049]
[1741868851410,0.01100545,83459.0,83458.0,0.048]
[1741868852240,0.01100545,83459.0,83458.0,0.049]
[1741868852441,0.01100545,83459.0,83458.0,0.05]
[1741868852601,0.02100545,83459.0,83458.0,0.05]
[1741868853323,0.03298645,83459.0,83458.0,0.05]
[1741868853530,0.02100545,83459.0,83458.0,0.05]
[1741868853957,0.03298645,83459.0,83458.0,0.002]
[1741868854132,0.021981,83459.0,83458.0,0.05]
[1741868854472,0.021981,83459.0,83458.0,0.002]
[1741868854677,0.03652185,83459.0,83458.0,0.002]
[1741868855037,0.03652185,83459.0,83458.0,0.05]
[1741868855998,0.03652185,83459.0,83458.0,0.049]
[1741868856152,0.03752185,83459.0,83458.0,0.001]
[1741868856582,0.26616385,83458.0,83457.0,0.0506188]
[1741868856742,0.26616385,83458.0,83457.0,0.0026188]
[1741868856942,0.26616385,83458.0,83457.0,0.0506188]
[1741868857660,0.26616385,83458.0,83457.0,0.0026188]
[1741868857861,0.26716385,83458.0,83457.0,0.0506188]
[1741868858061,0.26716385,83458.0,83457.0,0.0026188]
[1741868859129,0.26816385,83458.0,83457.0,0.0026188]
[1741868860680,0.39386385,83458.0,83457.0,0.0026188]
[1741868861271,0.39386385,83458.0,83457.0,8e-07]
[1741868861473,0.39286385,83458.0,83457.0,8e-07]
[1741868861877,0.39886385,83458.0,83457.0,8e-07]
[1741868862132,0.39786385,83458.0,83457.0,8e-07]
[1741868862542,0.40286385,83458.0,83457.0,0.0010008]
[1741868862716,0.40286385,83458.0,83424.0,0.239738]
[1741868862717,0.251689,83436.0,83435.0,0.048]
[1741868862897,0.251698,83433.0,83432.0,0.048]
[1741868863471,0.251731,83422.0,83421.0,0.04812386]
[1741868863958,0.239744,83423.0,83422.0,0.048]
[1741868864105,0.01439323,83422.0,83421.0,0.04812386]
[1741868864465,0.011987,83423.0,83421.0,0.00012386]
[1741868864665,0.011987,83422.0,83421.0,0.00012386]
[1741868864869,0.03076929,83422.0,83421.0,0.04812386]
[1741868865312,0.04504701,83422.0,83421.0,0.05112386]
[1741868865734,0.02626472,83422.0,83421.0,0.05112386]
[1741868866154,0.01427772,83422.0,83421.0,0.05212386]
[1741868866356,0.251727,83424.0,83421.0,0.05212386]
[1741868866559,0.26628338,83424.0,83423.0,0.048]
[1741868868175,0.01455638,83424.0,83423.0,0.048]
[1741868868524,0.011986,83424.0,83423.0,0.048]
[1741868868731,0.02661521,83424.0,83423.0,0.048]
[1741868868943,0.011986,83424.0,83423.0,0.048]
[1741868869732,0.02652855,83424.0,83423.0,0.048]
[1741868870348,0.04531075,83424.0,83423.0,0.048]
[1741868872435,0.04531075,83424.0,83423.0,0.049]
[1741868873652,0.04531075,83424.0,83423.0,0.05]
[1741868873828,0.04531075,83424.0,83423.0,0.051]
[1741868874631,0.03332475,83424.0,83423.0,0.051]
[1741868874837,0.04531075,83424.0,83423.0,0.1288]
[1741868875973,0.04531075,83424.0,83423.0,0.003]
[1741868876168,0.04531075,83424.0,83423.0,0.051]
[1741868878272,0.03332475,83424.0,83423.0,0.051]
[1741868878443,0.04531075,83424.0,83423.0,0.051]
[1741868879577,0.03332475,83424.0,83423.0,0.051]
[1741868880146,0.04531075,83424.0,83423.0,0.051]
[1741868881423,0.04531075,83424.0,83423.0,0.003]
[1741868881424,0.0598516,83424.0,83423.0,0.003]
[1741868882055,0.0598516,83424.0,83423.0,0.051]
[1741868882624,0.0598516,83424.0,83423.0,0.049]
[1741868882788,0.0608516,83424.0,83423.0,0.048]
[1741868883000,0.0618516,83424.0,83423.0,0.048]
[1741868883204,0.011987,83422.0,83421.0,0.00046266]
[1741868883413,0.011987,83422.0,83421.0,0.04846266]
[1741868885512,0.011987,83422.0,83421.0,0.04946266]
[1741868885709,0.011987,83422.0,83421.0,0.00146266]
[1741868885927,0.011987,83422.0,83421.0,0.00246266]
[1741868886130,0.02652785,83422.0,83421.0,0.00246266]
[1741868887148,0.02652785,83422.0,83421.0,0.00146266]
[1741868887424,0.02652785,83422.0,83421.0,0.00046266]
[1741868887628,0.01654085,83422.0,83421.0,0.00046266]
[1741868887836,0.253731,83422.0,83421.0,0.04846266]
[1741868888043,0.26827185,83422.0,83421.0,0.00046266]
[1741868888800,0.26627185,83422.0,83421.0,0.00046266]
[1741868889264,0.27327185,83422.0,83421.0,0.00046266]
[1741868889587,0.26827185,83422.0,83421.0,0.00046266]
[1741868889797,0.26727185,83422.0,83421.0,0.00046266]
[1741868891164,0.28705766,83422.0,83421.0,0.00046266]
[1741868893471,0.02078581,83422.0,83421.0,0.01244966]
[1741868893604,0.002,83422.0,83421.0,0.06544966]
[1741868893790,0.002,83422.0,83421.0,0.06664833]
[1741868893991,0.002,83422.0,83421.0,1.56664833]
[1741868894297,0.002,83422.0,83421.0,1.56544966]
[1741868894494,0.001,83422.0,83421.0,1.56544966]
[1741868894831,0.002,83422.0,83421.0,1.86544966]
[1741868895451,0.001,83422.0,83421.0,1.86544966]
[1741868895924,0.002,83422.0,83421.0,1.86544966]
[1741868896506,0.001,83422.0,83421.0,1.86544966]
[1741868897539,0.01877996,83442.0,83441.0,0.299674]
[1741868898784,0.01877996,83442.0,83441.0,0.298674]
[1741868899388,0.01877996,83442.0,83441.0,0.299674]
[1741868899843,0.01877996,83442.0,83441.0,0.048]
[1741868900014,0.01877996,83442.0,83441.0,0.299674]
[1741868901795,0.01877996,83442.0,83441.0,0.048]
[1741868901996,0.03076396,83442.0,83441.0,0.048]
[1741868902496,0.01877996,83442.0,83441.0,0.048]
[1741868903077,0.012829,83442.0,83441.0,0.048]
[1741868903390,0.013829,83442.0,83441.0,0.048]
[1741868903593,0.025813,83442.0,83441.0,0.048]
[1741868903793,0.013829,83442.0,83441.0,0.048]
[1741868903997,0.013829,83442.0,83441.0,0.058984]
[1741868904178,0.001,83442.0,83441.0,0.058984]